fUST/lending_fUST_20250612
["ID","MTS","AMOUNT","RATE_DAILY","PERIOD"]
[365515788,1749733840004,-460.0,0.00021095,4]
[365515789,1749733840014,-729.18,0.00021095,4]
[365515790,1749733840024,-776.23,0.00021095,4]
[365515791,1749733840034,-274.58173836,0.00021095,4]
[365515792,1749733840043,-460.0,0.00021095,4]
[365515793,1749733840052,-460.0,0.00021095,4]
[365515794,1749733840062,-926.1,0.00021095,4]
[365515795,1749733840071,-460.0,0.00021095,4]
[365515796,1749733840081,-460.0,0.00021095,4]
[365515797,1749733840090,-460.0,0.00021095,4]
[365515798,1749733840100,-460.0,0.00021095,4]
[365515799,1749733840110,-460.0,0.00021095,4]
[365515800,1749733840120,-460.0,0.00021095,4]
[365515801,1749733840133,-460.0,0.00021095,4]
[365515802,1749733840143,-594.65336325,0.00021095,4]
[365515803,1749733840153,-460.0,0.00021095,4]
[365515804,1749733840163,-460.0,0.00021095,4]
[365515805,1749733840174,-460.0,0.00021095,4]
[365515806,1749733840183,-440.0,0.00021095,4]
[365515807,1749733840193,-481.39,0.00021095,4]
[365515808,1749733840202,-350.0,0.00021095,2]
[365515809,1749733840212,-460.0,0.00021095,4]
[365515810,1749733840222,-460.0,0.00021095,4]
[365515811,1749733840231,-460.0,0.00021095,4]
[365515812,1749733840240,-460.0,0.00021095,4]
[365515813,1749733840249,-475.75,0.00021095,4]
[365515814,1749733840259,-460.0,0.00021095,4]
[365515815,1749733840268,-460.0,0.00021095,4]
[365515816,1749733840277,-347.03383799,0.00021095,4]
[365515817,1749733840287,-460.0,0.00021095,4]
[365515818,1749733840296,-460.0,0.00021095,4]
[365515819,1749733840305,-460.0,0.00021095,4]
[365515820,1749733840315,-460.0,0.00021095,4]
[365515821,1749733840325,-1963.39,0.00021095,4]
[365515822,1749733840335,-460.0,0.00021095,4]
[365515823,1749733840344,-460.0,0.00021095,4]
[365515824,1749733840354,-360.0,0.00021095,4]
[365515825,1749733840363,-754.66,0.00021095,4]
[365515827,1749733840373,-460.0,0.00021095,4]
[365515829,1749733840382,-1242.65,0.00021095,4]
[365515830,1749733840392,-1017.57,0.00021095,4]
[365515831,1749733840402,-537.33,0.00021095,4]
[365515832,1749733840412,-460.0,0.00021095,4]
[365515833,1749733840422,-460.0,0.00021095,4]
[365515834,1749733840432,-460.0,0.00021095,4]
[365515835,1749733840442,-733.75,0.000211,2]
[365515837,1749733840452,-1200.0,0.00021111,2]
[365515839,1749733840461,-300.0,0.00021152,2]
[365515841,1749733840471,-420.0,0.00021152,2]
[365515843,1749733840482,-973.80289166,0.00021176,4]
[365515845,1749733840491,-973.80289166,0.00021314,5]
[365515847,1749733840501,-891.76,0.00021359,3]
[365515850,1749733840510,-445.88,0.00021359,3]
[365515853,1749733840520,-222.94,0.00021359,3]
[365515856,1749733840529,-668.86,0.00021359,3]
[365515860,1749733840539,-1000.0,0.00021369,4]
[365515862,1749733840548,-427.33331253,0.00021369,4]
[365515866,1749733840558,-460.0,0.00021369,4]
[365515869,1749733840568,-499.58226701,0.00021369,4]
[365515871,1749733840577,-460.0,0.00021369,4]
[365515873,1749733840586,-460.0,0.00021369,4]
[365515875,1749733840596,-460.0,0.00021369,2]
[365515877,1749733840605,-460.0,0.00021369,4]
[365515879,1749733840615,-460.0,0.00021369,4]
[365515881,1749733840625,-460.0,0.00021369,4]
[365515883,1749733840634,-460.0,0.00021369,4]
[365515885,1749733840645,-474.27,0.00021369,4]
[365515887,1749733840655,-1484.78,0.00021369,4]
[365515889,1749733840665,-460.0,0.00021369,4]
[365515891,1749733840675,-460.0,0.00021369,4]
[365515893,1749733840684,-595.1,0.00021369,4]
[365515895,1749733840694,-460.0,0.00021369,4]
[365515897,1749733840703,-460.0,0.00021369,4]
[365515899,1749733840712,-729.18,0.00021369,4]
[365515901,1749733840721,-776.23,0.00021369,4]
[365515903,1749733840731,-380.0,0.00021369,4]
[365515905,1749733840741,-460.0,0.00021369,4]
[365515907,1749733840750,-926.1,0.00021369,4]
[365515909,1749733840760,-460.0,0.00021369,4]
[365515911,1749733840769,-460.0,0.00021369,4]
[365515913,1749733840779,-340.57366755,0.00021369,4]
[365515915,1749733840788,-460.0,0.00021369,4]
[365515917,1749733840798,-440.0,0.00021369,4]
[365515919,1749733840807,-460.0,0.00021369,4]
[365515921,1749733840817,-460.0,0.00021369,4]
[365515923,1749733840826,-340.0,0.00021369,4]
[365515925,1749733840836,-350.0,0.00021369,2]
[365515928,1749733840845,-460.0,0.00021369,4]
[365515929,1749733840855,-481.39,0.00021369,4]
[365515931,1749733840864,-460.0,0.00021369,4]
[365515933,1749733840874,-460.0,0.00021369,4]
[365515936,1749733840884,-475.75,0.00021369,4]
[365515938,1749733840895,-460.0,0.00021369,4]
[365515940,1749733840904,-460.0,0.00021369,4]
[365515942,1749733840913,-460.0,0.00021369,4]
[365515944,1749733840923,-1963.39,0.00021369,4]
[365515945,1749733840932,-460.0,0.00021369,4]
[365515947,1749733840941,-460.0,0.00021369,4]
[365515950,1749733840951,-754.66,0.00021369,4]
[365515952,1749733840960,-460.0,0.00021369,4]
[365515954,1749733840969,-1242.65,0.00021369,4]
[365515956,1749733840978,-1017.57,0.00021369,4]
[365515958,1749733840988,-537.33,0.00021369,4]
[365515960,1749733840997,-440.0,0.00021369,4]
[365515962,1749733841006,-460.0,0.00021369,4]
[365515964,1749733841016,-460.0,0.00021369,4]
[365515966,1749733841025,-973.80289166,0.00021452,5]
[365515967,1749733841035,-1588.86,0.00021462,2]
[365515970,1749733841044,-2534.67872588,0.00021475,2]
[365515971,1749733841056,-500.0,0.00021483,2]
[365515974,1749733841066,-537.978401,0.00021493,2]
[365515976,1749733841075,-500.0,0.00021511,2]
[365515977,1749733841086,-500.0,0.00021511,2]
[365515979,1749733841095,-503.18092134,0.00021511,2]
[365515982,1749733841105,-500.0,0.0002153,2]
[365515984,1749733841114,-500.0,0.0002153,2]
[365515986,1749733841124,-500.0,0.0002153,2]
[365515987,1749733841136,-500.0,0.00021544,2]
[365515990,1749733841147,-500.0,0.00021544,2]
[365515992,1749733841158,-500.0,0.00021552,2]
[365515994,1749733841168,-500.0,0.00021552,2]
[365515996,1749733841178,-500.0,0.00021552,2]
[365515998,1749733841187,-973.80289166,0.0002159,5]
[365516000,1749733841197,-500.0,0.00021642,3]
[365516002,1749733841207,-580.58,0.00021643,4]
[365516004,1749733841216,-460.0,0.00021643,4]
[365516006,1749733841225,-460.0,0.00021643,4]
[365516008,1749733841235,-460.0,0.00021643,2]
[365516010,1749733841244,-271.33,0.00021643,4]
[365516012,1749733841253,-460.0,0.00021643,4]
[365516014,1749733841262,-460.0,0.00021643,4]
[365516016,1749733841271,-302.47130591,0.00021643,4]
[365516018,1749733841281,-1484.78,0.00021643,4]
[365516020,1749733841290,-460.0,0.00021643,4]
[365516022,1749733841300,-460.0,0.00021643,4]
[365516024,1749733841310,-595.1,0.00021643,4]
[365516026,1749733841319,-460.0,0.00021643,4]
[365516028,1749733841329,-460.0,0.00021643,4]
[365516030,1749733841339,-729.18,0.00021643,4]
[365516032,1749733841349,-776.23,0.00021643,4]
[365516034,1749733841359,-460.0,0.00021643,4]
[365516036,1749733841369,-926.1,0.00021643,4]
[365516038,1749733841378,-460.0,0.00021643,4]
[365516040,1749733841388,-460.0,0.00021643,4]
[365516042,1749733841399,-460.0,0.00021643,4]
[365516044,1749733841409,-380.0,0.00021643,4]
[365516046,1749733841418,-183.48603663,0.00021643,4]
[365516048,1749733841428,-460.0,0.00021643,4]
[365516050,1749733841438,-481.39,0.00021643,4]
[365516052,1749733841448,-460.0,0.00021643,4]
[365516054,1749733841458,-460.0,0.00021643,4]
[365516056,1749733841467,-475.75,0.00021643,4]
[365516058,1749733841477,-460.0,0.00021643,4]
[365516060,1749733841487,-460.0,0.00021643,4]
[365516062,1749733841496,-460.0,0.00021643,4]
[365516064,1749733841506,-1963.39,0.00021643,4]
[365516067,1749733841516,-460.0,0.00021643,4]
[365516068,1749733841525,-150.60226109,0.00021643,4]
[365516070,1749733841535,-754.66,0.00021643,4]
[365516072,1749733841545,-460.0,0.00021643,4]
[365516074,1749733841556,-1242.65,0.00021643,4]
[365516077,1749733841566,-1017.57,0.00021643,4]
[365516078,1749733841576,-537.33,0.00021643,4]
[365516080,1749733841586,-460.0,0.00021643,4]
[365516083,1749733841596,-460.0,0.00021643,4]
[365516085,1749733841606,-458.60035033,0.00021696,2]
[365516087,1749733841615,-500.0,0.00021696,2]
[365516088,1749733841625,-973.80289166,0.00021728,5]
[365516090,1749733841634,-500.0,0.00021784,2]
[365516092,1749733841644,-500.0,0.00021784,2]
[365516093,1749733841655,-405.0,0.00021803,2]
[365516094,1749733841665,-500.0,0.00021824,2]
[365516095,1749733841674,-500.0,0.00021824,2]
[365516096,1749733841683,-500.0,0.00021838,2]
[365516097,1749733841693,-549.40032849,0.00021838,2]
[365516098,1749733841702,-500.0,0.00021838,2]
[365516099,1749733841712,-502.56237238,0.00021838,2]
[365516100,1749733841722,-500.0,0.00021838,2]
[365516101,1749733841731,-389.79435841,0.00021838,2]
[365516102,1749733841741,-501.58342673,0.00021838,2]
[365516103,1749733841751,-500.0,0.00021838,2]
[365516104,1749733841760,-500.0,0.00021838,2]
[365516105,1749733841769,-500.0,0.00021838,2]
[365516106,1749733841779,-500.0,0.00021838,2]
[365516107,1749733841789,-973.80289166,0.00021866,6]
[365516108,1749733841798,-460.0,0.00021917,4]
[365516109,1749733841808,-460.0,0.00021917,2]
[365516110,1749733841818,-500.0,0.00021917,2]
[365516111,1749733841827,-460.0,0.00021917,4]
[365516112,1749733841837,-460.0,0.00021917,4]
[365516113,1749733841846,-1484.78,0.00021917,4]
[365516114,1749733841856,-460.0,0.00021917,4]
[365516115,1749733841866,-460.0,0.00021917,4]
[365516116,1749733841876,-595.1,0.00021917,4]
[365516117,1749733841885,-460.0,0.00021917,4]
[365516118,1749733841895,-463.94,0.00021917,4]
[365516119,1749733841905,-729.18,0.00021917,4]
[365516120,1749733841914,-776.23,0.00021917,4]
[365516121,1749733841924,-460.0,0.00021917,4]
[365516122,1749733841934,-926.1,0.00021917,4]
[365516123,1749733841943,-460.0,0.00021917,4]
[365516124,1749733841953,-460.0,0.00021917,4]
[365516125,1749733841963,-460.0,0.00021917,4]
[365516126,1749733841972,-460.0,0.00021917,4]
[365516127,1749733841982,-481.39,0.00021917,4]
[365516128,1749733841992,-460.0,0.00021917,4]
[365516129,1749733842002,-377.6289628,0.00021917,4]
[365516130,1749733842011,-475.75,0.00021917,4]
[365516131,1749733842021,-460.0,0.00021917,4]
[365516132,1749733842031,-340.0,0.00021917,4]
[365516133,1749733842041,-340.0,0.00021917,4]
[365516134,1749733842051,-1963.39,0.00021917,4]
[365516135,1749733842060,-460.0,0.00021917,4]
[365516136,1749733842071,-754.66,0.00021917,4]
[365516137,1749733842080,-460.0,0.00021917,4]
[365516138,1749733842090,-1242.65,0.00021917,4]
[365516139,1749733842099,-1017.57,0.00021917,4]
[365516140,1749733842109,-537.33,0.00021917,4]
[365516141,1749733842119,-460.0,0.00021917,4]
[365516142,1749733842234,-460.0,0.00021917,4]
[365516143,1749733842246,-500.0,0.00021921,2]
[365516144,1749733842256,-500.0,0.00021921,2]
[365516145,1749733842266,-500.0,0.00021921,2]
[365516146,1749733842276,-500.0,0.00021921,2]
[365516147,1749733842286,-500.0,0.00021921,2]
[365516148,1749733842296,-500.0,0.00021921,2]
[365516149,1749733842306,-500.0,0.00021921,2]
[365516150,1749733842317,-500.0,0.00021921,2]
[365516151,1749733842327,-215.03809992,0.00021921,2]
[365516152,1749733842337,-197.691484,0.00021921,2]
[365516153,1749733842347,-500.0,0.00021921,2]
[365516154,1749733842357,-500.0,0.00021921,2]
[365516155,1749733842367,-500.0,0.00021921,2]
[365516156,1749733842377,-500.0,0.00021921,2]
[365516157,1749733842387,-500.0,0.00021921,2]
[365516158,1749733842399,-250.0,0.00021921,2]
[365516159,1749733842409,-5000.0,0.00021922,2]
[365516160,1749733842419,-207.4,0.00021922,2]
[365516161,1749733842428,-2534.67872588,0.00021954,2]
[365516162,1749733842439,-5611.4663642,0.00022,7]
[365516163,1749733842449,-973.80289166,0.00022003,6]
[365516164,1749733842460,-1000.0,0.00022078,2]
[365516165,1749733842470,-500.0,0.00022078,2]
[365516166,1749733842480,-973.80289166,0.00022141,6]
[365516167,1749733842489,-500.0,0.0002219,4]
[365516168,1749733842499,-460.0,0.00022191,4]
[365516169,1749733842509,-460.0,0.00022191,2]
[365516170,1749733842518,-460.0,0.00022191,4]
[365516171,1749733842528,-460.0,0.00022191,4]
[365516172,1749733842538,-1484.78,0.00022191,4]
[365516173,1749733842548,-460.0,0.00022191,4]
[365516174,1749733842557,-460.0,0.00022191,4]
[365516175,1749733842567,-595.1,0.00022191,4]
[365516176,1749733842577,-355.86,0.00022191,4]
[365516177,1749733842587,-729.18,0.00022191,4]
[365516178,1749733842596,-776.23,0.00022191,4]
[365516179,1749733842606,-460.0,0.00022191,4]
[365516181,1749733842615,-926.1,0.00022191,4]
[365516182,1749733842625,-460.0,0.00022191,4]
[365516185,1749733842635,-460.0,0.00022191,4]
[365516186,1749733842646,-460.0,0.00022191,4]
[365516187,1749733842656,-460.0,0.00022191,4]
[365516188,1749733842666,-481.39,0.00022191,4]
[365516189,1749733842675,-460.0,0.00022191,4]
[365516190,1749733842685,-475.75,0.00022191,4]
[365516191,1749733842695,-460.0,0.00022191,4]
[365516192,1749733842704,-1963.39,0.00022191,4]
[365516193,1749733842714,-283.99,0.00022191,4]
[365516194,1749733842724,-754.66,0.00022191,4]
[365516195,1749733842734,-460.0,0.00022191,4]
[365516196,1749733842743,-1242.65,0.00022191,4]
[365516198,1749733842753,-1017.57,0.00022191,4]
[365516199,1749733842763,-537.33,0.00022191,4]
[365516200,1749733842774,-460.0,0.00022191,4]
[365516201,1749733842783,-185.09474156,0.000222,69]
[365516202,1749733842794,-968.0,0.00022209,2]
[365516203,1749733842803,-968.0,0.00022263,2]
[365516204,1749733842813,-973.80289166,0.00022279,6]
[365516205,1749733842823,-968.0,0.00022282,2]
[365516206,1749733842833,-554.82077354,0.00022332,2]
[365516207,1749733842843,-1141.68336327,0.00022332,2]
[365516208,1749733842852,-968.0,0.00022347,2]
[365516210,1749733842862,-500.0,0.00022355,2]
[365516211,1749733842871,-733.75,0.000224,7]
[365516212,1749733842882,-169.91100383,0.00022411,2]
[365516213,1749733842891,-168.0,0.00022413,2]
[365516214,1749733842902,-973.80289166,0.00022417,7]
[365516215,1749733842912,-2534.67872588,0.00022434,2]
[365516217,1749733842922,-2383.29,0.00022437,2]
[365516218,1749733842932,-661.0,0.00022443,2]
[365516219,1749733842942,-160.0,0.00022464,2]
[365516220,1749733842951,-311.02,0.00022465,4]
[365516221,1749733842961,-460.0,0.00022465,2]
[365516223,1749733842971,-460.0,0.00022465,4]
[365516224,1749733842980,-499.81,0.00022465,4]
[365516226,1749733842989,-1484.78,0.00022465,4]
[365516227,1749733842999,-258.43,0.00022465,4]
[365516228,1749733843008,-460.0,0.00022465,4]
[365516229,1749733843018,-595.1,0.00022465,4]
[365516230,1749733843027,-729.18,0.00022465,4]
[365516231,1749733843036,-776.23,0.00022465,4]
[365516232,1749733843046,-926.1,0.00022465,4]
[365516233,1749733843055,-460.0,0.00022465,4]
[365516234,1749733843065,-460.0,0.00022465,4]
[365516236,1749733843074,-460.0,0.00022465,4]
[365516237,1749733843083,-460.0,0.00022465,4]
[365516238,1749733843093,-481.39,0.00022465,4]
[365516239,1749733843102,-460.0,0.00022465,4]
[365516240,1749733843112,-475.75,0.00022465,4]
[365516241,1749733843122,-440.0,0.00022465,4]
[365516242,1749733843135,-1963.39,0.00022465,4]
[365516244,1749733843145,-754.66,0.00022465,4]
[365516245,1749733843155,-460.0,0.00022465,4]
[365516246,1749733843165,-1242.65,0.00022465,4]
[365516247,1749733843177,-1017.57,0.00022465,4]
[365516248,1749733843187,-537.33,0.00022465,4]
[365516249,1749733843196,-570.95,0.00022465,4]
[365516250,1749733843206,-5000.0,0.0002247,2]
[365516251,1749733843216,-973.80289166,0.00022555,7]
[365516252,1749733843226,-968.0,0.0002261,2]
[365516253,1749733843235,-500.0,0.00022626,2]
[365516254,1749733843245,-500.0,0.00022673,2]
[365516255,1749733843255,-500.0,0.00022673,2]
[365516256,1749733843265,-500.0,0.00022673,2]
[365516257,1749733843274,-500.0,0.00022673,2]
[365516258,1749733843284,-500.0,0.00022673,2]
[365516259,1749733843294,-500.0,0.00022673,2]
[365516260,1749733843304,-963.0,0.00022683,2]
[365516261,1749733843314,-2160.0,0.00022683,2]
[365516262,1749733843324,-655.321,0.00022683,2]
[365516264,1749733843334,-973.80289166,0.00022693,7]
[365516265,1749733843344,-3000.0,0.000227,2]
[365516266,1749733843353,-164419.48,0.000227,7]
[365516267,1749733843364,-3000.0,0.0002271,2]
[365516268,1749733843374,-169.91100383,0.00022712,2]
[365516269,1749733843384,-3000.0,0.0002272,2]
[365516270,1749733843394,-1783.52,0.00022729,3]
[365516271,1749733843405,-891.76,0.00022729,3]
[365516272,1749733843414,-445.88,0.00022729,3]
[365516273,1749733843423,-4869.891865,0.0002273,2]
[365516274,1749733843433,-554.05,0.00022738,5]
[365516276,1749733843443,-460.0,0.00022739,2]
[365516277,1749733843452,-363.37,0.00022739,4]
[365516278,1749733843461,-1484.78,0.00022739,4]
[365516279,1749733843470,-460.0,0.00022739,4]
[365516280,1749733843480,-595.1,0.00022739,4]
[365516281,1749733843490,-729.18,0.00022739,4]
[365516282,1749733843499,-776.23,0.00022739,4]
[365516283,1749733843508,-926.1,0.00022739,4]
[365516284,1749733843518,-460.0,0.00022739,4]
[365516285,1749733843527,-460.0,0.00022739,4]
[365516286,1749733843537,-533.84,0.00022739,4]
[365516287,1749733843547,-460.0,0.00022739,4]
[365516288,1749733843557,-481.39,0.00022739,4]
[365516289,1749733843566,-460.0,0.00022739,4]
[365516290,1749733843576,-475.75,0.00022739,4]
[365516291,1749733843585,-1963.39,0.00022739,4]
[365516292,1749733843594,-754.66,0.00022739,4]
[365516293,1749733843604,-509.82,0.00022739,4]
[365516294,1749733843614,-1242.65,0.00022739,4]
[365516295,1749733843624,-1017.57,0.00022739,4]
[365516296,1749733843634,-537.33,0.00022739,4]
[365516297,1749733843643,-973.80289166,0.00022831,8]
[365516298,1749733843654,-1016.52317799,0.00022839,2]
[365516299,1749733843663,-196.719879,0.00022904,2]
[365516300,1749733843672,-2534.67872588,0.00022913,2]
[365516301,1749733843682,-973.80289166,0.00022969,8]
[365516302,1749733843691,-151.0,0.00022973,7]
[365516303,1749733843701,-151.0,0.00022973,7]
[365516304,1749733843710,-460.501958,0.00022998,7]
[365516305,1749733843720,-460.501958,0.00022998,7]
[365516306,1749733843729,-861.93091,0.00022998,7]
[365516307,1749733843739,-861.93091,0.00022998,7]
[365516308,1749733843749,-1642.38,0.00023,2]
[365516309,1749733843759,-151.0,0.00023,7]
[365516310,1749733843770,-460.501958,0.00023,7]
[365516311,1749733843780,-460.501958,0.00023,7]
[365516312,1749733843790,-861.93091,0.00023,7]
[365516313,1749733843799,-861.93091,0.00023,7]
[365516314,1749733843809,-151.0,0.00023,7]
[365516315,1749733843818,-151.0,0.00023,7]
[365516316,1749733843828,-2000.0,0.00023,3]
[365516317,1749733843837,-460.0,0.00023013,2]
[365516318,1749733843847,-1484.78,0.00023013,4]
[365516319,1749733843857,-460.0,0.00023013,4]
[365516320,1749733843866,-595.1,0.00023013,4]
[365516321,1749733843875,-729.18,0.00023013,4]
[365516322,1749733843885,-776.23,0.00023013,4]
[365516323,1749733843894,-926.1,0.00023013,4]
[365516324,1749733843910,-460.0,0.00023013,4]
[365516325,1749733843919,-460.0,0.00023013,4]
[365516326,1749733843929,-460.0,0.00023013,4]
[365516327,1749733843938,-481.39,0.00023013,4]
[365516328,1749733843948,-460.0,0.00023013,4]
[365516329,1749733843958,-475.75,0.00023013,4]
[365516330,1749733843967,-1963.39,0.00023013,4]
[365516331,1749733843977,-754.66,0.00023013,4]
[365516332,1749733843986,-1242.65,0.00023013,4]
[365516333,1749733843996,-1017.57,0.00023013,4]
[365516334,1749733844005,-537.33,0.00023013,4]
[365516335,1749733844015,-169.91100383,0.00023014,2]
[365516336,1749733844024,-600.0,0.00023039,2]
[365516337,1749733844034,-587.0,0.00023046,2]
[365516338,1749733844044,-973.80289166,0.00023107,8]
[365516339,1749733844054,-2000.0,0.000232,3]
[365516340,1749733844063,-424.26423502,0.000232,3]
[365516341,1749733844073,-160.0,0.000232,3]
[365516342,1749733844082,-229.7508257,0.000232,3]
[365516343,1749733844093,-835.15920933,0.000232,3]
[365516344,1749733844102,-213.20212768,0.000232,3]
[365516345,1749733844112,-160.0,0.000232,3]
[365516346,1749733844122,-1000.0,0.00023221,2]
[365516347,1749733844136,-1041.66043374,0.00023221,2]
[365516348,1749733844146,-1002.10903495,0.00023221,2]
[365516349,1749733844158,-1047.63699572,0.00023221,2]
[365516350,1749733844168,-1000.0,0.00023221,2]
[365516351,1749733844178,-1000.0,0.00023221,2]
[365516352,1749733844187,-973.80289166,0.00023245,8]
[365516353,1749733844197,-460.501958,0.00023262,7]
[365516354,1749733844208,-460.501958,0.00023262,7]
[365516355,1749733844217,-861.93091,0.00023262,7]
[365516356,1749733844227,-861.93091,0.00023262,7]
[365516357,1749733844236,-600.0,0.00023279,2]
[365516358,1749733844245,-151.0,0.00023286,7]
[365516359,1749733844254,-151.0,0.00023287,7]
[365516360,1749733844263,-151.0,0.00023287,7]
[365516361,1749733844272,-460.0,0.00023287,2]
[365516362,1749733844282,-1484.78,0.00023287,4]
[365516363,1749733844291,-460.0,0.00023287,4]
[365516364,1749733844302,-595.1,0.00023287,4]
[365516365,1749733844311,-729.18,0.00023287,4]
[365516366,1749733844321,-776.23,0.00023287,4]
[365516367,1749733844330,-926.1,0.00023287,4]
[365516368,1749733844340,-460.0,0.00023287,4]
[365516369,1749733844350,-460.0,0.00023287,4]
[365516370,1749733844360,-460.0,0.00023287,4]
[365516371,1749733844370,-481.39,0.00023287,4]
[365516372,1749733844380,-205.79,0.00023287,4]
[365516373,1749733844390,-475.75,0.00023287,4]
[365516374,1749733844400,-1963.39,0.00023287,4]
[365516375,1749733844409,-754.66,0.00023287,4]
[365516376,1749733844419,-1242.65,0.00023287,4]
[365516377,1749733844429,-1017.57,0.00023287,4]
[365516378,1749733844439,-537.33,0.00023287,4]
[365516379,1749733844449,-215.0738,0.00023291,2]
[365516380,1749733844459,-169.91100383,0.00023315,2]
[365516381,1749733844469,-460.501958,0.0002335,7]
[365516382,1749733844478,-460.501958,0.0002335,7]
[365516383,1749733844489,-861.93091,0.0002335,7]
[365516384,1749733844499,-861.93091,0.0002335,7]
[365516385,1749733844508,-151.0,0.0002335,7]
[365516386,1749733844518,-151.0,0.0002335,7]
[365516387,1749733844527,-973.80289166,0.00023383,9]
[365516388,1749733844538,-460.501958,0.000234,7]
[365516389,1749733844548,-460.501958,0.000234,7]
[365516390,1749733844558,-861.93091,0.000234,7]
[365516391,1749733844567,-861.93091,0.000234,7]
[365516392,1749733844577,-229.385573,0.000234,7]
[365516393,1749733844587,-639.0,0.000234,2]
[365516394,1749733844596,-3177.73,0.00023413,2]
[365516395,1749733844606,-151.0,0.00023457,6]
[365516396,1749733844616,-151.0,0.000235,5]
[365516397,1749733844625,-2554.65,0.000235,3]
[365516398,1749733844635,-160.0,0.000235,3]
[365516399,1749733844644,-2599.224755,0.00023519,3]
[365516400,1749733844655,-600.0,0.00023519,2]
[365516401,1749733844664,-973.80289166,0.00023521,9]
[365516402,1749733844673,-460.501958,0.0002355,7]
[365516403,1749733844683,-460.501958,0.0002355,7]
[365516404,1749733844692,-861.93091,0.0002355,7]
[365516405,1749733844701,-861.93091,0.0002355,7]
[365516406,1749733844711,-460.0,0.00023561,2]
[365516407,1749733844721,-1484.78,0.00023561,4]
[365516408,1749733844730,-460.0,0.00023561,4]
[365516409,1749733844739,-595.1,0.00023561,4]
[365516410,1749733844749,-729.18,0.00023561,4]
[365516411,1749733844758,-776.23,0.00023561,4]
[365516412,1749733844767,-926.1,0.00023561,4]
[365516413,1749733844777,-460.0,0.00023561,4]
[365516414,1749733844785,-460.0,0.00023561,4]
[365516415,1749733844794,-460.0,0.00023561,4]
[365516416,1749733844804,-481.39,0.00023561,4]
[365516417,1749733844813,-475.75,0.00023561,4]
[365516418,1749733844823,-1963.39,0.00023561,4]
[365516419,1749733844832,-754.66,0.00023561,4]
[365516422,1749733844933,-1242.65,0.00023561,4]
[365516423,1749733844943,-1017.57,0.00023561,4]
[365516424,1749733844952,-537.33,0.00023561,4]
[365516425,1749733844961,-460.501958,0.00023568,7]
[365516426,1749733844970,-460.501958,0.00023568,7]
[365516428,1749733844980,-861.93091,0.00023568,7]
[365516430,1749733844989,-861.93091,0.00023568,7]
[365516431,1749733844998,-223.44416616,0.00023585,2]
[365516433,1749733845008,-3131.6576244,0.00023598,2]
[365516435,1749733845017,-584.38376883,0.000236,9]
[365516437,1749733845027,-460.501958,0.000236,7]
[365516439,1749733845037,-151.0,0.000236,6]
[365516441,1749733845046,-460.501958,0.000236,7]
[365516443,1749733845056,-861.93091,0.000236,7]
[365516445,1749733845066,-861.93091,0.000236,7]